Cogmind - Beta 16.1 @@@ ROGUE MODE // 2026.02.28 @ 18:52:00 Player: Alomoes Result: Destroyed by HC-L9F(R) with Subdweller Machine Gun Performance ------------- Evolutions (0) 0 Regions Visited (2) 400 Robots Destroyed (8) 40 Value Destroyed (230) 230 Prototype IDs (0) 0 Alien Tech Used (0) 0 Bonus (0) 0 TOTAL SCORE: 670 Bonus ------- None Cogmind --------- Core Integrity 0/250 Matter 295/300 Energy 15/100 System Corruption 0% Temperature Cool (0) Movement Core (200) Ox3 Location -10/Subcaves Parts ------- > --- POWER (1) -------- (None) > --- PROPULSION (2) --- (None) > --- UTILITY (2) ------ Small Storage Unit Subdweller Optics > --- WEAPON (2) ------- Particle Cannon > --- INVENTORY (8) ---- Riot Gun Particle Cannon Particle Cannon Particle Cannon Assault Rifle Assault Rifle Battle Cannon Peak State ------------ > --- POWER ------------ (None) > --- PROPULSION ------- Spiked Treads > --- UTILITY ---------- Small Storage Unit Subdweller Optics > --- WEAPON ----------- Particle Cannon Heavy Battle Rifle > --- INVENTORY -------- Riot Gun Particle Cannon Particle Cannon Particle Cannon Assault Rifle Assault Rifle Battle Cannon Flamer [Rating: 12] Favorites ----------- Power Ion Engine Engine Ion Engine Propulsion Light Treads Treads Light Treads Utility Small Storage Unit Device Subdweller Optics Storage Small Storage Unit Weapon Particle Cannon Energy Cannon Particle Cannon Ballistic Gun Heavy Battle Rifle Special Weapon Flamer Build | -11 -10 -10 ------- Run | Yrd Mat Sub Slots Evolved . | . . . Power . | . . . Propulsion . | . . . Utility . | . . . Weapon . | . . . Parts Attached 15 | 4 4 7 Power 4 | 1 2 1 Engine 4 | 1 2 1 Core . | . . . Reactor . | . . . Propulsion 3 | 2 . 1 Treads 3 | 2 . 1 Leg . | . . . Wheel . | . . . Hover . | . . . Flight . | . . . Utility 2 | 1 . 1 Device 1 | . . 1 Storage 1 | 1 . . Processor . | . . . Hackware . | . . . Protection . | . . . Artifact . | . . . Weapon 6 | . 2 4 Energy Gun . | . . . Energy Cannon 2 | . . 2 Ballistic Gun 3 | . 2 1 Ballistic Cannon . | . . . Launcher . | . . . Special Weapon 1 | . . 1 Impact Weapon . | . . . Slashing Weapon . | . . . Piercing Weapon . | . . . Special Melee Weapon . | . . . Unidentified Prototypes . | . . . Parts Lost 7 | . . 7 Power 2 | . . 2 Propulsion 3 | . . 3 Utility . | . . . Weapon 2 | . . 2 Highest Loss Streak 3 | . . 3 To Critical Strikes 1 | . . 1 Average Backups 7 | 3 7 7 Power . | . 1 . Propulsion . | . . . Utility . | . . . Weapon 7 | 2 6 7 Tool/Special . | . . . Unused Backups 10 | . 3 7 Power . | . . . Propulsion . | . . . Utility . | . . . Weapon 10 | . 3 7 Tool/Special . | . . . Average Slot Usage (%) 74 | . 74 74 Engine 6 | . 14 4 Treads 26 | . 28 26 Storage 14 | . 14 14 Energy Cannon 10 | . . 12 Ballistic Gun 15 | . 17 15 Peak Build Rating 12 | 4 7 12 Average Rating 9 | 3 6 9 On Entrance 3 | . 4 7 Avg Prop Armor Cover (%) . | . . . Naked Turns . | . . . Heaviest Build 18 | 8 12 18 Greatest Support 40 | 40 40 40 Greatest Overweight (x) . | . . . Average Overweight (x) . | . . . Largest Inventory Capacity 8 | 8 8 8 Average Capacity 7 | 7 8 8 Most Carried 8 | 5 8 8 Average Carried 7 | 3 7 7 Final Capacity 8 | 8 8 8 Final Carried 8 | 4 8 7 Class Distribution -------------------- 100% | Mutant Dominant Class ---------------- Mutant | -10/Materials Mutant | -10/Subcaves Resources | -11 -10 -10 ----------- Run | Yrd Mat Sub Matter Collected 505 | 201 . 304 Remotely . | . . . Salvage Created 265 | . . 265 Parts 15 | . . 15 Haulers Intercepted . | . . . Recyclers Shooed . | . . . Parts Field Recycled . | . . . Retrieved Matter . | . . . Parts Self-Destructed 9 | . . 9 Prevented . | . . . Parts Restored . | . . . Kills | -11 -10 -10 ------- Run | Yrd Mat Sub Combat Hostiles Destroyed 8 | . . 8 Guns 6 | . . 6 Cannons 1 | . . 1 Classes Destroyed 2 | . . 2 Swarmer 3 | . . 3 Subdweller 5 | . . 5 Best Kill Streak 3 | . . 3 Combat Bots Only 3 | . . 3 Max Kills in Single Turn 1 | . . 1 Gunslinging . | . . . Exploded . | . . . Melee . | . . . Uniques/NPCs Destroyed . | . . . Combat | -11 -10 -10 -------- Run | Yrd Mat Sub Hostile Shots Fired 72 | . . 72 Missed 19 | . . 19 Hits 53 | . . 53 Projectile 53 | . . 53 Critical Strikes 1 | . . 1 Damage Taken 1220 | . . 1220 Core 254 | . . 254 Absorbed by Shields . | . . . Core Remaining (%) 100 | 100 . . Volleys Fired 41 | . . 41 Largest 2 | . . 2 Hottest 168 | . . 168 Shots Fired 78 | . . 78 Gun 49 | . . 49 Cannon 28 | . . 28 Launcher . | . . . Special 1 | . . 1 Kinetic 49 | . . 49 Thermal 29 | . . 29 Explosive . | . . . Electromagnetic . | . . . Robot Hit Streak 10 | . . 10 Robot Miss Streak 3 | . . 3 Penetration Max . | . . . Secondary Targets . | . . . Shots Hit Robots 49 | . . 49 Core Hits 12 | . . 12 Critical Kills 2 | . . 2 Critical Parts Destroyed . | . . . Critical Strikes 3 | . . 3 Burn 1 | . . 1 Meltdown 1 | . . 1 Destroy 1 | . . 1 Melee Attacks . | . . . Impact . | . . . Slashing . | . . . Piercing . | . . . Sneak Attacks . | . . . Combat Hostiles . | . . . Follow-up Attacks . | . . . Damage Inflicted 773 | . . 773 Guns 412 | . . 412 Cannons 349 | . . 349 Explosions . | . . . Melee . | . . . Ramming . | . . . Kinetic 412 | . . 412 Thermal 361 | . . 361 Explosive . | . . . Electromagnetic . | . . . Impact . | . . . Slashing . | . . . Piercing . | . . . Highest Corruption . | . . . Average Corruption . | . . . Corruption Purged . | . . . Corruption Blocked . | . . . Overload Shots . | . . . Overflow Damage . | . . . Projectiles . | . . . Explosions . | . . . Melee . | . . . Knockbacks . | . . . Impact . | . . . Kinetic . | . . . Secondary . | . . . Self-Inflicted Damage . | . . . Shots . | . . . Rammed 1 | . 1 . Targets Rammed 1 | . 1 . Kicked . | . . . Crushed . | . . . Highest Temperature . | . . . Average Temperature . | . . . Received Heat Transfer 93 | . . 93 Siege Activations . | . . . Martial Activations . | . . . Shielding Activations . | . . . Robots Disrupted . | . . . Combat Hostiles . | . . . Robots Corrupted . | . . . Combat Hostiles . | . . . Parts Fried . | . . . Impact Corruptions . | . . . Robots Melted 1 | . . 1 Combat Hostiles 1 | . . 1 Parts Melted 2 | . . 2 Heat Transferred 869 | . . 869 Parts Sabotaged . | . . . Parts Stolen . | . . . Parts Stripped . | . . . Power Chain Reactions . | . . . Alert | -11 -10 -10 ------- Run | Yrd Mat Sub Maximum Alert Level . | . . . Low Security (%) 100 | 100 100 . Level 1 . | . . . Level 2 . | . . . Level 3 . | . . . Level 4 . | . . . Level 5 . | . . . High Security . | . . . Max Security . | . . . Peak Influence . | . . . Initial . | . . . Average . | . . . Influence Increases 70 | . . 70 Destroy 0b10 Robot/C 60 | . . 60 Destroy Leader 10 | . . 10 Influence Decreases 70 | . . 70 Time Decay 60 | . . 60 Lost Part 10 | . . 10 Squads Dispatched . | . . . Investigation . | . . . Extermination . | . . . Reinforcement . | . . . Assault . | . . . Garrison . | . . . Intercept . | . . . Searches Triggered . | . . . Construction Impeded . | . . . Haulers Reinforced . | . . . Active Scanning Responses . | . . . Cargo Convoy Interrupts . | . . . Stealth | -11 -10 -10 --------- Run | Yrd Mat Sub Distress Signals 1 | . 1 . Communications Jammed . | . . . Distress Signals . | . . . Times Spotted 13 | . . 13 Peak Tracking Total 3 | . . 3 Tactical Retreats . | . . . Traps | -11 -10 -10 ------- Run | Yrd Mat Sub Traps Triggered 7 | . 1 6 Indirectly . | . . . Trap Hack Attempts . | . . . Triggered . | . . . Disarmed . | . . . Reprogrammed . | . . . Reused . | . . . Traps Extracted . | . . . Installed . | . . . Triggered . | . . . Machines | -11 -10 -10 ---------- Run | Yrd Mat Sub Machines Disabled . | . . . Max in Single Turn . | . . . Machines Repaired . | . . . Machines Dismantled . | . . . Machines Sabotaged . | . . . Overloaded Fab Kills . | . . . Hacking | -11 -10 -10 --------- Run | Yrd Mat Sub Machines Accessed 1 | . 1 . Terminals 1 | . 1 . Fabricators . | . . . Repair Stations . | . . . Recycling Units . | . . . Scanalyzers . | . . . Garrison Access . | . . . Total Hacks 1 | . 1 . Successful 1 | . 1 . Failed . | . . . Catastrophic . | . . . Database Lockouts . | . . . Manual . | . . . Terminals 1 | . 1 . Fabricators . | . . . Repair Stations . | . . . Recycling Units . | . . . Scanalyzers . | . . . Garrison Access . | . . . Terminal Hacks 1 | . 1 . Dispatch Records 1 | . 1 . Fabricator Hacks . | . . . Repair Station Hacks . | . . . Recycling Unit Hacks . | . . . Scanalyzer . | . . . Garrison Access Hacks . | . . . Unauthorized Hacks . | . . . Terminals . | . . . Fabricators . | . . . Repair Stations . | . . . Recycling Units . | . . . Scanalyzers . | . . . Garrison Access . | . . . Data Cores Recovered . | . . . Used . | . . . Hacking Detections . | . . . Full Trace Events . | . . . Feedback Events . | . . . Feedback Blocked . | . . . Robot Schematics Acquired . | . . . Robots Built . | . . . Authchips . | . . . Time . | . . . Total Robot Build Rating . | . . . Part Schematics Acquired . | . . . Parts Built . | . . . Authchips . | . . . Time . | . . . Total Part Build Rating . | . . . Part Studies Acquired . | . . . Parts Repaired . | . . . Time . | . . . Parts Recycled . | . . . Recycled Matter . | . . . Retrieved Matter . | . . . Retrieved Components . | . . . Parts Scanalyzed . | . . . Part Schematics Acquired . | . . . Parts Damaged . | . . . Bothacking | -11 -10 -10 ------------ Run | Yrd Mat Sub Used RIF Installer . | . . . Robots Hacked . | . . . Non-combat . | . . . Combat . | . . . Robot Hacks Applied . | . . . Relay Couplers Released . | . . . Fabnet Peak Effective % . | . . . Robots Rewired . | . . . Allies Hacked . | . . . Hacks Repelled . | . . . Allies | -11 -10 -10 -------- Run | Yrd Mat Sub Total Allies . | . . . Largest Group . | . . . Highest-Rated Group . | . . . Highest-Rated Ally . | . . . Total Orders . | . . . Ally Attacks . | . . . Total Damage . | . . . Kills . | . . . Allies Corrupted . | . . . Allies Melted . | . . . Intel | -11 -10 -10 ------- Run | Yrd Mat Sub Active Infowar (turns) 102 | . . 102 Optics 102 | . . 102 Robot Analysis Total . | . . . Derelict Logs Recovered 1 | . . 1 Drone Launches . | . . . Drone Recoveries . | . . . Exploration | -11 -10 -10 ------------- Run | Yrd Mat Sub Turns Passed 1786 | 67 221 1498 Spaces Moved 1017 | 44 126 847 Core 13 | 13 . . Treads 1004 | 31 126 847 Legs . | . . . Wheels . | . . . Hover . | . . . Flight . | . . . Fastest Speed 50 | 50 160 160 Average Speed 158 | 127 160 160 Slowest Speed 160 | 160 160 160 Overloaded Moves . | . . . Propulsion Burnouts . | . . . Robots Hopped . | . . . Potential Cave-ins . | . . . Cave-ins Triggered . | . . . Exploration Rate (%) 24 | 4 21 49 Regions Visited 2 Branch Regions 1 Pre-discovered Areas 1 | . . 1 Known Exits Taken . | . . . Unknown Exits Taken 2 | 1 1 . Scrap Searched 3 | . . 3 Spaces Dug . | . . . Terrain Destroyed 1 | . . 1 Melee . | . . . Projectile 1 | . . 1 AOE . | . . . Terrain Rammed . | . . . Walls Destroyed . | . . . Machines Disabled . | . . . Actions | -11 -10 -10 --------- Run | Yrd Mat Sub Total 1105 | 55 144 906 Wait 1 | . . 1 Move 1015 | 43 125 847 Hop . | . . . Pick Up 19 | 8 7 4 Fast Attach 7 | . 5 2 Attach 6 | 4 . 2 Detach . | . . . Swap 7 | . 2 5 Drop 8 | . 4 4 Fire 41 | . . 41 Melee . | . . . Ram . | . . . Kick . | . . . Crush 1 | . 1 . Escape Stasis . | . . . Rewire . | . . . Trap . | . . . Miscellaneous . | . . . Route ------- -11/Scrapyard -10/Materials -10/Subcaves History --------- Turn | Location | Event 3 | -11/Scrapyard | Discovered new exit (range 15) 68 | -11/Scrapyard | Entered Materials 69 | -10/Materials | Met a group of wandering Federalists 286 | -10/Materials | Discovered new exit (range 3) 289 | -10/Materials | Entered Subcaves 289 | -10/Subcaves | Accompanied by 3 allies 290 | -10/Subcaves | Continued accompanying wandering Federalists (5) 310 | -10/Subcaves | Build established: Mutant 428 | -10/Subcaves | Lost 5 allies 507 | -10/Subcaves | Curiously followed by a Cobbler waking with a query about "LVR3C" 947 | -10/Subcaves | A swath of the cavern ceiling suddenly collapsed 1167 | -10/Subcaves | Learned location of Zion (-7) 1167 | -10/Subcaves | Met a Zionite searching for "candidates" 1497 | -10/Subcaves | Learned 2 Materials zone layouts 1769 | -10/Subcaves | A Subdweller sparked back to life 1769 | -10/Subcaves | A Subdweller sparked back to life 1769 | -10/Subcaves | A Subdweller sparked back to life 1774 | -10/Subcaves | Core integrity fell below 50% 1784 | -10/Subcaves | Core integrity fell below 20% 1787 | -10/Subcaves | Destroyed by HC-L9F(R) with Subdweller Machine Gun Last Messages --------------- 01685_ Acquired Sub. Optics. [Achievement: Spot Them First] 01686_ Acquired 25 matter. 01701_ P8-W5D(O) collects matter. 01702_ P8-W5D(O) puts together Sub. Beam Cannon. 01769_ NP-YD8(R) creaks and sparks as it begins to move. 01769_ FU-5H9(R) creaks and sparks as it begins to move. 01769_ HC-L9F(R) creaks and sparks as it begins to move. 01775_ Critical hit (Destroy). 01775_ Spk. Treads destroyed. 01776_ FU-5H9(R) affixes Scrap Shield Fragment to Scrap Shield. 01777_ Hvy. Battle Rifle destroyed. 01782_ NP-YD8(R) suffers critical hit (Burn). 01783_ Flamer destroyed. 01785_ FU-5H9(R) affixes Scrap Shield Fragment to Scrap Shield. Map ----- +----------------------------------------------------+ | #??????????????????????????????????????????????? | | #??????????????????????????????????????????????? | | #??????????????????????????????????????????????? | | ##?????????????????????????????????????????????? | | ##????????????????????????????????????????????? | | #????????????????????????????????????????????? | | #????????????????????????????????????????????? | | #????????????????????????????????????????????? | | ##????????????????????????????????????????????? | | #?????????????????????????????????????????????? | | ??##?????????????????????????????????????????????? | | ?????????????????????????????????????????????????? | | ??###????????????????????????????????????????????? | | ?## #????????????????????????????????????????????? | | ## ##???????????????????????????????????????????? | | # ##?########??###??????????###???????????????? | | ### #### ###??????? #???????????????? | | # ###????# ????????????????? | | ## ##### #?????????????????? | | ### # # ## #?????????????????? | | ##?####### # #?????????????????? | | ### #??????# # #??????????????????? | | ??# ####??????# ###??????????????????? | | ??######?????????## # < R #??????????????????? | | ?????????????????## R # #??????????????????? | | ?????????????????# R @ #????????????????????? | | ?????????????????# O <#????????????????????? | | ?????????????????# < #????????????????????? | | ?????????????????############????????????????????? | | ?????????????????????????????????????????????????? | | ?????????????????????????????????????????????????? | | ?????????????????????????????????????????????????? | | ?????????????????????????????????????????????????? | | ?????????????????????????????????????????????????? | | ?????????????????????????????????????????????????? | | ?????????????????????????????????????????????????? | | ?????????????????????????????????????????????????? | | ?????????????????????????????????????????????????? | | ?????????????????????????????????????????????????? | | ?????????????????????????????????????????????????? | | ?????????????????????????????????????????????????? | | ?????????????????????????????????????????????????? | | ?????????????????????????????????????????????????? | | ?????????????????????????????????????????????????? | | ?????????????????????????????????????????????????? | | ?????????????????????????????????????????????????? | | ?????????????????????????????????????????????????? | | ?????????????????????????????????????????????????? | | ?????????????????????????????????????????????????? | | ?????????????????????????????????????????????????? | +----------------------------------------------------+ Best States ------------- Heat Dissipation 25 Energy Generation 10 Energy Capacity 250 Matter Stores 300 Matter Capacity 300 Sight Range 21 Terrain Scan Density 10 Evasion (%) 50 Recoil Reduction 2 Item Schematics ----------------- None Robot Schematics ------------------ None Fabricated ------------ Nothing Repaired ---------- Nothing Studied --------- None Alien Tech Used ----------------- None Achievements -------------- I Have A Map? Spot Them First Strength In Numbers Challenges ------------ None Game ------ Seed DoorImprovedProcessor Manual? 0 Play Time 00:31:04 Cumulative 3.1 hours Start 2026.02.28 @ 18:19:17 End 2026.02.28 @ 18:52:00 Sessions 1 Manual Loads 0 Difficulty Rogue Special Mode None Game No. 5 Rogue 5 Adventurer 0 Explorer 0 Win Type - Total 0 Types 0/0/0/0/0/0/0/0/0/0 Lore% 3 Gallery% 6 Achievement% 5 Wizard Run 0 Options --------- Layout 1 ASCII 0 Keyboard 0 Movement Mouse Keybinds 0 Fullscreen 1 Font 24/Smallcaps Map View 50x40 Zoom Use 0% Tactical HUD 1 Map Filters NONE Filters NONE Steam 1 RUN: e26c40b7-a6ca-4878-8bc1-d5df95f32786